Cogmind - Beta 16.1 @@@ ROGUE MODE // 2026.03.20 @ 19:05:28 Player: Ceorik Result: Self-destructed Performance ------------- Evolutions (5) 2500 Regions Visited (11) 2200 Robots Destroyed (137) 685 Value Destroyed (4377) 4377 Prototype IDs (28) 560 Alien Tech Used (0) 0 Bonus (1092) 1092 TOTAL SCORE: 11414 Bonus ------- High Alert Combat Kills 57 Follower Combat Kills 235 Registered with UFD 300 Met Optimus in HQ 500 Cogmind --------- Core Integrity 936/1000 Matter 167/300 Energy 27/100 System Corruption 0% Temperature Cool (0) Movement Hovering (176) Ox2 Location -5/Factory Parts ------- > --- POWER (1) -------- (None) > --- PROPULSION (6) --- Gravmag System Gravmag System Gyrokinetic Inverter Field Propulsion Drive > --- UTILITY (8) ------ Cryofiber Web Experimental Heat Sink Large Storage Unit Improved Sensor Array (fused) Improved Signal Interpreter Improved Medium Armor Plating A0-MCA's Component Scanner > --- WEAPON (2) ------- Cooled Particle Cannon Heavy Rocket Launcher > --- INVENTORY (15) --- Improved Heat Sink Improved Heat Sink Large Storage Unit Deep Structural Scanner Launcher Guidance Computer Hardened Medium Armor Plating Improved Medium Armor Plating Layered Light Armor Plating Improved EM Pulse Cannon Improved EM Pulse Cannon Improved Heavy Machine Gun Micro-nuke Launcher Plasma Cutter Makeshift Spear Botcube Peak State ------------ > --- POWER ------------ Antimatter Reactor > --- PROPULSION ------- Hover Unit Airjet Gravmag System Gravmag System Field Propulsion Drive > --- UTILITY ---------- Cryofiber Web Experimental Heat Sink Large Storage Unit Improved Sensor Array Improved Signal Interpreter Transmission Jammer Improved Medium Armor Plating A0-MCA's Component Scanner > --- WEAPON ----------- Cooled Particle Cannon Improved Heavy Machine Gun > --- INVENTORY -------- Improved Heat Sink Improved Heat Sink Large Storage Unit Deep Structural Scanner Launcher Guidance Computer Hardened Medium Armor Plating Improved Medium Armor Plating Layered Light Armor Plating Improved EM Pulse Cannon Improved EM Pulse Cannon Heavy Rocket Launcher Plasma Cutter Makeshift Spear Botcube [Rating: 75] Favorites ----------- Power Antimatter Reactor Engine Heavy Ion Engine Reactor Antimatter Reactor Propulsion Gravmag System Treads Light Treads Wheel Armored Wheel Hover Unit Gravmag System Flight Unit Field Propulsion Drive Utility Large Storage Unit Device Cryofiber Web Storage Large Storage Unit Processor Improved Signal Interpreter Protection Improved Medium Armor Plating Weapon Cooled Particle Cannon Energy Gun Beamcaster Energy Cannon Cooled Particle Cannon Ballistic Gun Assault Rifle Ballistic Cannon Improved Light Cannon Launcher Heavy Rocket Launcher Impact Weapon Powered Hammer Build | -11 -10 -9 -9 -8 -7 -7 -7 -7 -7 -7 -5 ------- Run | Yrd Mat Mat Min Mat Fac Was Fac Sto Rec Scr Fac Slots Evolved 10 | . . 2 . 2 2 . . . . . 4 Power . | . . . . . . . . . . . . Propulsion 4 | . . 1 . . 1 . . . . . 2 Utility 6 | . . 1 . 2 1 . . . . . 2 Weapon . | . . . . . . . . . . . . Parts Attached 110 | 7 5 11 1 19 26 9 14 3 5 6 4 Power 11 | 1 . 1 1 3 2 2 . . . 1 . Engine 8 | 1 . 1 1 3 2 . . . . . . Core . | . . . . . . . . . . . . Reactor 3 | . . . . . . 2 . . . 1 . Propulsion 30 | 2 2 4 . 1 11 2 1 . 4 1 2 Treads 16 | 2 1 1 . 1 9 1 1 . . . . Leg . | . . . . . . . . . . . . Wheel 7 | . 1 3 . . 2 1 . . . . . Hover 6 | . . . . . . . . . 4 1 1 Flight 1 | . . . . . . . . . . . 1 Utility 36 | 1 3 2 . 7 6 1 7 2 1 4 2 Device 15 | . . . . 4 2 . 3 2 1 2 1 Storage 5 | 1 2 . . . . . 1 . . 1 . Processor 7 | . . 1 . 1 2 . 1 . . 1 1 Hackware . | . . . . . . . . . . . . Protection 9 | . 1 1 . 2 2 1 2 . . . . Artifact . | . . . . . . . . . . . . Weapon 33 | 3 . 4 . 8 7 4 6 1 . . . Energy Gun 4 | . . . . 2 . 2 . . . . . Energy Cannon 12 | . . 1 . 4 5 . 2 . . . . Ballistic Gun 6 | 3 . . . . . 2 . 1 . . . Ballistic Cannon 5 | . . 2 . . . . 3 . . . . Launcher 4 | . . 1 . 2 1 . . . . . . Special Weapon . | . . . . . . . . . . . . Impact Weapon 2 | . . . . . 1 . 1 . . . . Slashing Weapon . | . . . . . . . . . . . . Piercing Weapon . | . . . . . . . . . . . . Special Melee Weapon . | . . . . . . . . . . . . Unidentified Prototypes 6 | . . 1 . 1 1 . 1 1 1 . . Parts Lost 18 | . . 1 1 1 7 . 4 . . . 4 Power 2 | . . . 1 . . . . . . . 1 Propulsion 5 | . . . . . 2 . 1 . . . 2 Utility 8 | . . 1 . 1 3 . 2 . . . 1 Weapon 3 | . . . . . 2 . 1 . . . . Highest Loss Streak 4 | . . 1 1 1 4 . 1 . . . 3 To Critical Strikes . | . . . . . . . . . . . . Average Backups 13 | 2 11 14 14 14 13 14 14 14 13 14 12 Power 1 | . 2 3 2 2 1 1 1 1 1 . . Propulsion 1 | 1 3 2 2 2 1 . . 1 1 . . Utility 5 | . 3 4 5 4 5 6 6 6 6 8 7 Weapon 4 | . 2 3 4 5 4 4 5 4 4 4 4 Tool/Special . | . . . . . . . . . . . . Unused Backups 36 | . 1 4 . 9 6 3 1 2 . 1 9 Power 7 | . 1 1 . 4 . 1 . . . . . Propulsion 1 | . . . . . 1 . . . . . . Utility 16 | . . 1 . 2 3 1 1 2 . 1 5 Weapon 10 | . . 2 . 3 1 1 . . . . 3 Tool/Special 2 | . . . . . 1 . . . . . 1 Average Slot Usage (%) 91 | . 96 99 99 98 94 83 81 84 88 92 83 Engine 5 | . 14 11 10 9 7 2 . . . . . Reactor 3 | . . . . . . 4 7 7 7 6 1 Treads 8 | . 19 11 11 9 15 2 7 7 2 . . Wheel 8 | . 8 22 22 18 8 11 7 7 2 . . Hover 5 | . . . . . . . . . 14 23 16 Device 14 | . . . . 17 14 15 14 23 23 20 22 Storage 8 | . 14 11 11 9 7 7 7 7 7 6 5 Processor 9 | . . 10 11 8 13 15 13 7 7 9 11 Protection 8 | . 10 11 11 9 8 7 7 7 7 7 5 Energy Gun 1 | . . . . 1 . 12 2 . . . . Energy Cannon 6 | . . . . 15 10 1 5 7 6 6 5 Ballistic Gun 5 | . 28 5 . . . . . 4 6 6 1 Ballistic Cannon 2 | . . 16 22 . . . 4 2 . . . Peak Build Rating 75 | 6 8 16 16 33 49 58 60 60 61 58 75 Average Rating 40 | 4 7 13 15 29 44 53 56 59 54 52 66 On Entrance 33 | . 6 8 16 15 33 47 58 58 60 42 58 Avg Prop Armor Cover (%) 10 | . 8 7 7 9 14 13 12 12 12 . 1 Naked Turns . | . . . . . . . . . . . . Heaviest Build 65 | 14 32 38 38 48 50 56 65 59 57 57 60 Greatest Support 112 | 40 40 24 24 24 112 56 28 28 28 32 32 Greatest Overweight (x) 3 | . 3 1 1 1 2 1 2 2 2 2 2 Average Overweight (x) 1 | . 2 1 1 1 . . 1 2 1 1 1 Largest Inventory Capacity 15 | 8 15 15 15 15 15 15 15 15 15 15 15 Average Capacity 14 | 6 12 15 15 15 15 15 15 15 15 14 15 Most Carried 15 | 4 15 15 15 15 15 15 15 15 15 15 15 Average Carried 14 | 2 11 14 14 14 14 14 14 14 13 14 13 Final Capacity 15 | 8 15 15 15 15 15 15 15 15 15 15 15 Final Carried 15 | 4 15 15 14 15 14 15 15 15 15 15 15 Class Distribution -------------------- 84% | Mutant 12% | Scavenger-Mutant Dominant Class ---------------- Mutant | -10/Materials Mutant | -9/Materials Mutant | -9/Mines Mutant | -8/Materials Mutant | -7/Factory Mutant | -7/Waste Mutant | -7/Factory Mutant | -7/Storage Mutant | -7/Recycling Scavenger-Mutant | -7/Scraptown Mutant | -5/Factory Resources | -11 -10 -9 -9 -8 -7 -7 -7 -7 -7 -7 -5 ----------- Run | Yrd Mat Mat Min Mat Fac Was Fac Sto Rec Scr Fac Matter Collected 2793 | 265 521 561 85 219 391 205 202 171 71 97 5 Remotely . | . . . . . . . . . . . . Salvage Created 4430 | . 482 674 70 792 1095 . 885 115 258 . 59 Parts 238 | . 34 36 7 62 46 . 37 4 8 . 4 Haulers Intercepted 10 | . 2 3 . 3 . . 1 1 . . . Recyclers Shooed 6 | . 1 3 . . 1 . 1 . . . . Parts Field Recycled . | . . . . . . . . . . . . Retrieved Matter . | . . . . . . . . . . . . Parts Self-Destructed . | . . . . . . . . . . . . Prevented . | . . . . . . . . . . . . Parts Restored . | . . . . . . . . . . . . Kills | -11 -10 -9 -9 -8 -7 -7 -7 -7 -7 -7 -5 ------- Run | Yrd Mat Mat Min Mat Fac Was Fac Sto Rec Scr Fac Combat Hostiles Destroyed 107 | . 10 17 3 18 33 . 18 1 2 . 5 Melee 2 | . . . . . 2 . . . . . . Guns 23 | . 10 7 . 1 . . 5 . . . . Cannons 43 | . . 7 3 13 13 . 4 1 2 . . AOE 33 | . . 3 . 4 13 . 8 . . . 5 Classes Destroyed 15 | . 5 4 . 1 3 . 2 . . . . Worker 5 | . 3 . . . . . 2 . . . . Builder 3 | . . . . . 2 . 1 . . . . Hauler 10 | . 2 3 . 3 . . 1 1 . . . Recycler 7 | . . 2 . . . . 3 . 2 . . Mechanic 1 | . . . . . . . 1 . . . . Operator 1 | . . . . . 1 . . . . . . Watcher 3 | . . 2 . . 1 . . . . . . Swarmer 38 | . 3 7 . 7 9 . 7 . . . 5 Grunt 40 | . 6 4 3 3 16 . 8 . . . . Brawler 2 | . . 1 . . . . 1 . . . . Duelist 1 | . . . . . . . 1 . . . . Sentry 17 | . . 5 . 7 2 . . 1 2 . . Hunter 3 | . . . . 1 2 . . . . . . Programmer 5 | . . . . . 4 . 1 . . . . Subdweller 1 | . 1 . . . . . . . . . . Best Kill Streak 10 | . 3 7 2 5 8 . 10 1 3 . 5 Combat Bots Only 8 | . 3 6 2 5 8 . 5 1 1 . 5 Max Kills in Single Turn 5 | . 1 3 1 4 2 . 5 1 1 . 3 Gunslinging . | . . . . . . . . . . . . Exploded 4 | . . 3 . 4 2 . 3 . . . 3 Melee 1 | . . . . . 1 . . . . . . Uniques/NPCs Destroyed . | . . . . . . . . . . . . Combat | -11 -10 -9 -9 -8 -7 -7 -7 -7 -7 -7 -5 -------- Run | Yrd Mat Mat Min Mat Fac Was Fac Sto Rec Scr Fac Hostile Shots Fired 701 | . 53 73 18 64 318 . 82 27 45 . 21 Missed 222 | . 16 19 6 20 103 . 23 10 20 . 5 Hits 479 | . 37 54 12 44 215 . 59 17 25 . 16 Melee 1 | . . . . . . . 1 . . . . Projectile 478 | . 37 54 12 44 215 . 58 17 25 . 16 Critical Strikes 14 | . . 1 . . 7 . 5 1 . . . Part Disruptions 1 | . . . . . 1 . . . . . . Damage Taken 6378 | . 450 602 144 635 2563 . 1268 235 170 . 311 Core 697 | . 89 79 17 74 270 . 54 50 . . 64 Absorbed by Shields 15 | . . . . . 15 . . . . . . Core Remaining (%) 74 | 100 64 . 76 86 . . . . . 46 . Volleys Fired 367 | . 61 60 10 46 113 . 47 9 15 . 6 Largest 2 | . 2 2 2 2 2 . 2 1 1 . 2 Hottest 160 | . 40 66 66 160 160 . 150 90 90 . 129 Shots Fired 548 | . 122 119 20 67 128 . 60 9 16 . 7 Gun 208 | . 122 46 . 6 . . 34 . . . . Cannon 320 | . . 72 20 60 115 . 23 9 16 . 5 Launcher 20 | . . 1 . 1 13 . 3 . . . 2 Special . | . . . . . . . . . . . . Kinetic 265 | . 122 118 20 . . . 5 . . . . Thermal 247 | . . . . 66 99 . 52 9 16 . 5 Explosive 20 | . . 1 . 1 13 . 3 . . . 2 Electromagnetic 16 | . . . . . 16 . . . . . . Robot Hit Streak 15 | . 12 15 6 14 14 . 14 8 9 . . Robot Miss Streak 5 | . 5 2 2 3 4 . 2 . 2 . 3 Penetration Max . | . . . . . . . . . . . . Secondary Targets 3 | . 1 . . . . . 2 . . . . Max Gunslinging Chain 1 | . 1 . . . . . 1 . . . . Shots Hit Robots 353 | . 69 86 12 45 83 . 45 4 9 . . Core Hits 174 | . 25 30 4 25 52 . 29 2 4 . 3 Critical Kills 4 | . 1 . . 1 1 . 1 . . . . Critical Parts Destroyed 2 | . 1 . . . 1 . . . . . . Critical Strikes 11 | . 2 2 . 1 2 . 4 . . . . Burn 3 | . . . . . . . 3 . . . . Meltdown 3 | . . . . 1 1 . 1 . . . . Destroy 2 | . 2 . . . . . . . . . . Blast 2 | . . 2 . . . . . . . . . Smash 1 | . . . . . 1 . . . . . . Melee Attacks 21 | . . . . . 21 . . . . . . Impact 21 | . . . . . 21 . . . . . . Slashing . | . . . . . . . . . . . . Piercing . | . . . . . . . . . . . . Sneak Attacks 1 | . . . . . 1 . . . . . . Combat Hostiles . | . . . . . . . . . . . . Follow-up Attacks . | . . . . . . . . . . . . Damage Inflicted 12810 | . 910 1744 274 1380 4555 . 2833 226 432 . 456 Guns 2033 | . 897 475 . 76 . . 585 . . . . Cannons 5637 | . . 1127 274 997 1906 . 683 218 432 . . Explosions 4693 | . . 133 . 307 2266 . 1531 . . . 456 Melee 356 | . . . . . 356 . . . . . . Ramming 91 | . 13 9 . . 27 . 34 8 . . . Kinetic 2858 | . 897 1602 274 . . . 85 . . . . Thermal 5978 | . . . . 1073 2056 . 2199 218 432 . . Explosive 3250 | . . 133 . 307 1839 . 515 . . . 456 Electromagnetic 277 | . . . . . 277 . . . . . . Impact 356 | . . . . . 356 . . . . . . Slashing . | . . . . . . . . . . . . Piercing . | . . . . . . . . . . . . Highest Corruption 8 | . . . . . 3 3 4 6 8 . . Average Corruption 4 | . . . . . 2 3 3 5 7 . . Corruption Purged . | . . . . . . . . . . . . Corruption Blocked . | . . . . . . . . . . . . Effects 95 | . . . . . 8 9 29 11 38 . . Message Errors 20 | . . . . . 2 1 7 2 8 . . Matter Fused 19 | . . . . . 2 2 4 3 8 . . Heat Flow Errors 17 | . . . . . 1 1 6 . 9 . . Energy Discharges 9 | . . . . . 1 1 4 2 1 . . Parts Rejected 1 | . . . . . . . . . 1 . . Parts Fused 2 | . . . . . . . . 1 1 . . Data Loss (minor) 13 | . . . . . 1 4 2 3 3 . . Data Loss (major) 6 | . . . . . . . 4 . 2 . . Misfires 1 | . . . . . . . . . 1 . . Alerts 6 | . . . . . 1 . 1 . 4 . . Weapon Failures 1 | . . . . . . . 1 . . . . Overload Shots 24 | . . . . . . . 9 4 8 . 3 Effects 3 | . . . . . . . 1 . 1 . 1 Heat Surge 2 | . . . . . . . 1 . 1 . . Short Circuit 1 | . . . . . . . . . . . 1 Overflow Damage 795 | . . 19 . . 369 . 288 . 2 . 117 Projectiles 145 | . . 19 . . 79 . 45 . 2 . . Explosions 507 | . . . . . 156 . 234 . . . 117 Melee 143 | . . . . . 134 . 9 . . . . Knockbacks 5 | . . 1 1 . 2 . 1 . . . . Impact 3 | . . . . . 2 . 1 . . . . Kinetic 2 | . . 1 1 . . . . . . . . Secondary . | . . . . . . . . . . . . Self-Inflicted Damage 350 | . 5 4 . . 74 . 248 4 . . 15 Shots 9 | . . . . . 3 . 5 . . . 1 Rammed 5 | . 1 1 . . 1 . 1 1 . . . Targets Rammed 6 | . 2 1 . . 1 . 1 1 . . . Kicked . | . . . . . . . . . . . . Crushed 1 | . 1 . . . . . . . . . . Highest Temperature 311 | . 13 93 51 117 . . 311 52 261 . 18 Average Temperature 63 | . 3 33 25 25 . . 129 25 89 . 13 Received Heat Transfer 2377 | . 222 204 84 207 967 . 504 138 42 . 9 Effects 4 | . . . . . . . 4 . . . . Interference 4 | . . . . . . . 4 . . . . Siege Activations . | . . . . . . . . . . . . Martial Activations . | . . . . . . . . . . . . Shielding Activations . | . . . . . . . . . . . . Robots Disrupted . | . . . . . . . . . . . . Combat Hostiles . | . . . . . . . . . . . . Robots Corrupted 2 | . . . . . 1 . 1 . . . . Combat Hostiles 1 | . . . . . 1 . . . . . . Parts Fried 7 | . . . . . 6 . 1 . . . . Impact Corruptions 6 | . . . . . 5 . 1 . . . . Robots Melted 6 | . . . . 1 4 . 1 . . . . Combat Hostiles 5 | . . . . . 4 . 1 . . . . Parts Melted 26 | . . . . 8 9 . 7 1 1 . . Heat Transferred 8694 | . . . . 2042 3400 . 2604 200 448 . . Parts Sabotaged . | . . . . . . . . . . . . Parts Stolen . | . . . . . . . . . . . . Parts Stripped . | . . . . . . . . . . . . Power Chain Reactions . | . . . . . . . . . . . . Alert | -11 -10 -9 -9 -8 -7 -7 -7 -7 -7 -7 -5 ------- Run | Yrd Mat Mat Min Mat Fac Was Fac Sto Rec Scr Fac Maximum Alert Level 2 | . . 1 . . 2 1 1 . . . . Low Security (%) 77 | 100 100 73 100 100 50 88 18 100 100 . 100 Level 1 20 | . . 26 . . 37 11 81 . . . . Level 2 2 | . . . . . 12 . . . . . . Level 3 . | . . . . . . . . . . . . Level 4 . | . . . . . . . . . . . . Level 5 . | . . . . . . . . . . . . High Security . | . . . . . . . . . . . . Max Security . | . . . . . . . . . . . . Peak Influence 645 | . 92 305 108 176 645 225 378 115 117 . 142 Initial 225 | . . . 108 6 74 225 . 110 5 . . Average 105 | . 22 124 54 56 210 103 235 60 27 . 34 Influence Increases 4457 | . 303 607 100 623 1292 . 739 366 224 . 203 Destroy 0b10 Robot/C 2240 | . 180 340 60 360 660 . 360 140 40 . 100 Destroy 0b10 Robot/NC 150 | . 25 35 . 15 20 . 40 5 10 . . Destroy Leader 506 | . 44 90 10 106 142 . 52 52 . . 10 Allied During Kill 67 | . . . . . . . . 67 . . . Successful Hack 113 | . 23 21 . 34 7 . . 12 4 . 12 Select Force Hacks 150 | . . . . . . . . . 150 . . Disable Machine 405 | . 15 30 . . 150 . 135 30 15 . 30 Destroy Structure 286 | . 1 16 . 33 133 . 62 . 5 . 36 Lose Combat Pursuer 540 | . 15 75 30 75 180 . 90 60 . . 15 Influence Decreases 4457 | . 303 330 359 476 812 645 496 594 239 . 203 Entered New Map 835 | . . . 169 12 91 420 . 133 10 . . Time Decay 2949 | . 303 320 180 336 501 225 456 226 229 . 173 Lost Part 160 | . . 10 10 . 70 . 40 . . . 30 Lost Ally 191 | . . . . . . . . 191 . . . Purge Threat 322 | . . . . 128 150 . . 44 . . . Squads Dispatched 25 | . 1 1 . 3 13 . 3 3 . . 1 Investigation 3 | . . . . 1 1 . . 1 . . . Extermination 7 | . . . . . 3 . 2 1 . . 1 Reinforcement 12 | . 1 1 . 2 6 . 1 1 . . . Assault . | . . . . . . . . . . . . Garrison 3 | . . . . . 3 . . . . . . Intercept . | . . . . . . . . . . . . Searches Triggered . | . . . . . . . . . . . . Construction Impeded 2 | . . . . 1 1 . . . . . . Haulers Reinforced . | . . . . . . . . . . . . Active Scanning Responses . | . . . . . . . . . . . . Cargo Convoy Interrupts . | . . . . . . . . . . . . Stealth | -11 -10 -9 -9 -8 -7 -7 -7 -7 -7 -7 -5 --------- Run | Yrd Mat Mat Min Mat Fac Was Fac Sto Rec Scr Fac Distress Signals 8 | . 1 1 . 3 1 . 1 1 . . . Communications Jammed . | . . . . . . . . . . . . Distress Signals . | . . . . . . . . . . . . Times Spotted 190 | . 23 24 5 28 58 1 29 11 2 . 9 Peak Tracking Total 9 | . 4 6 3 5 9 1 6 6 1 . 5 Tactical Retreats 20 | . 2 4 1 2 6 . 2 2 . . 1 Traps | -11 -10 -9 -9 -8 -7 -7 -7 -7 -7 -7 -5 ------- Run | Yrd Mat Mat Min Mat Fac Was Fac Sto Rec Scr Fac Traps Triggered 12 | . . . . 1 3 . 3 4 . . 1 Indirectly . | . . . . . . . . . . . . Trap Hack Attempts . | . . . . . . . . . . . . Triggered . | . . . . . . . . . . . . Disarmed . | . . . . . . . . . . . . Reprogrammed . | . . . . . . . . . . . . Reused . | . . . . . . . . . . . . Traps Extracted . | . . . . . . . . . . . . Installed . | . . . . . . . . . . . . Triggered . | . . . . . . . . . . . . Machines | -11 -10 -9 -9 -8 -7 -7 -7 -7 -7 -7 -5 ---------- Run | Yrd Mat Mat Min Mat Fac Was Fac Sto Rec Scr Fac Machines Disabled 27 | . 1 2 . . 10 . 9 2 1 . 2 Max in Single Turn 5 | . 1 1 . . 4 . 5 1 1 . 1 Garrison Access 1 | . . . . 1 . . . . . . . Machines Repaired . | . . . . . . . . . . . . Machines Dismantled . | . . . . . . . . . . . . Machines Sabotaged . | . . . . . . . . . . . . Overloaded Fab Kills . | . . . . . . . . . . . . Hacking | -11 -10 -9 -9 -8 -7 -7 -7 -7 -7 -7 -5 --------- Run | Yrd Mat Mat Min Mat Fac Was Fac Sto Rec Scr Fac Machines Accessed 58 | . 7 5 . 7 7 . 2 4 12 7 7 Terminals 36 | . 5 5 . 5 4 . 1 4 6 . 6 Fabricators 1 | . . . . . . . 1 . . . . Repair Stations . | . . . . . . . . . . . . Recycling Units 10 | . 2 . . 1 . . . . 6 . 1 Scanalyzers 2 | . . . . . 2 . . . . . . Garrison Access 2 | . . . . 1 1 . . . . . . Total Hacks 159 | . 20 14 . 16 15 . 3 12 28 35 16 Successful 97 | . 12 7 . 9 5 . 1 6 15 35 7 Failed 61 | . 8 7 . 7 9 . 2 6 13 . 9 Catastrophic 10 | . 1 1 . 1 2 . 1 1 1 . 2 Database Lockouts 1 | . . . . . 1 . . . . . . Manual 59 | . 7 10 . 9 3 . . 5 17 . 8 Terminals 93 | . 15 14 . 12 9 . 2 12 14 . 15 Fabricators 1 | . . . . . . . 1 . . . . Repair Stations . | . . . . . . . . . . . . Recycling Units 21 | . 5 . . 1 . . . . 14 . 1 Scanalyzers 5 | . . . . . 5 . . . . . . Garrison Access 4 | . . . . 3 1 . . . . . . Terminal Hacks 59 | . 6 3 . 3 2 . 1 4 2 35 3 Record 34 | . . . . . . . . . . 34 . Robot Analysis 3 | . 1 1 . . . . . . 1 . . Prototype ID Bank 4 | . 2 1 . 1 . . . . . . . Open Door 1 | . . . . . . . . 1 . . . Branch Access Points 4 | . . 1 . 1 1 . . 1 . . . Emergency Access Points 1 | . 1 . . . . . . . . . . Terminal Index 1 | . . . . . . . . . . . 1 Alert Level 3 | . . . . . . . 1 . 1 . 1 Unreport Threat 4 | . . . . 1 1 . . 2 . . . Locate Traps 1 | . 1 . . . . . . . . . . Recall Extermination 1 | . . . . . . . . . . . 1 Registered Components 1 | . 1 . . . . . . . . . . Proto ID Catalog 1 | . . . . . . . . . . 1 . Fabricator Hacks . | . . . . . . . . . . . . Repair Station Hacks . | . . . . . . . . . . . . Recycling Unit Hacks 9 | . 2 . . 1 . . . . 5 . 1 Report Inventory 4 | . 2 . . 1 . . . . 1 . . Retrieve Components 5 | . . . . . . . . . 4 . 1 Scanalyzer 1 | . . . . . 1 . . . . . . Retrieve Study 1 | . . . . . 1 . . . . . . Garrison Access Hacks 1 | . . . . 1 . . . . . . . Seal Access 1 | . . . . 1 . . . . . . . Unauthorized Hacks 27 | . 4 4 . 4 2 . . 2 8 . 3 Terminals 22 | . 4 4 . 4 2 . . 2 3 . 3 Botnet 22 | . 4 4 . 4 2 . . 2 3 . 3 Fabricators . | . . . . . . . . . . . . Repair Stations . | . . . . . . . . . . . . Recycling Units 5 | . . . . . . . . . 5 . . Tunnel 5 | . . . . . . . . . 5 . . Scanalyzers . | . . . . . . . . . . . . Garrison Access . | . . . . . . . . . . . . Data Cores Recovered . | . . . . . . . . . . . . Used . | . . . . . . . . . . . . Hacking Detections 44 | . 6 5 . 6 5 . 2 4 10 . 6 Full Trace Events 2 | . . . . . . . . . 2 . . Feedback Events . | . . . . . . . . . . . . Feedback Blocked . | . . . . . . . . . . . . Robot Schematics Acquired . | . . . . . . . . . . . . Robots Built . | . . . . . . . . . . . . Authchips . | . . . . . . . . . . . . Time . | . . . . . . . . . . . . Total Robot Build Rating . | . . . . . . . . . . . . Part Schematics Acquired . | . . . . . . . . . . . . Parts Built . | . . . . . . . . . . . . Authchips . | . . . . . . . . . . . . Time . | . . . . . . . . . . . . Total Part Build Rating . | . . . . . . . . . . . . Part Studies Acquired 1 | . . . . . 1 . . . . . . Parts Repaired . | . . . . . . . . . . . . Time . | . . . . . . . . . . . . Parts Recycled . | . . . . . . . . . . . . Recycled Matter . | . . . . . . . . . . . . Retrieved Matter . | . . . . . . . . . . . . Retrieved Components 10 | . . . . . . . . . 7 . 3 Parts Scanalyzed . | . . . . . . . . . . . . Part Schematics Acquired . | . . . . . . . . . . . . Parts Damaged . | . . . . . . . . . . . . Bothacking | -11 -10 -9 -9 -8 -7 -7 -7 -7 -7 -7 -5 ------------ Run | Yrd Mat Mat Min Mat Fac Was Fac Sto Rec Scr Fac Used RIF Installer . | . . . . . . . . . . . . Robots Hacked . | . . . . . . . . . . . . Non-combat . | . . . . . . . . . . . . Combat . | . . . . . . . . . . . . Robot Hacks Applied . | . . . . . . . . . . . . Relay Couplers Released . | . . . . . . . . . . . . Fabnet Peak Effective % . | . . . . . . . . . . . . Robots Rewired . | . . . . . . . . . . . . Allies Hacked 2 | . . . . . . . . 2 . . . Hacks Repelled . | . . . . . . . . . . . . Allies | -11 -10 -9 -9 -8 -7 -7 -7 -7 -7 -7 -5 -------- Run | Yrd Mat Mat Min Mat Fac Was Fac Sto Rec Scr Fac Total Allies 10 | . . . . . . . . 10 . . . Largest Group 10 | . . . . . . . . 10 . . . Highest-Rated Group 173 | . . . . . . . . 173 . . . Highest-Rated Ally 29 | . . . . . . . . 29 . . . Initial UFD Resources 38 | . . . . . . . . . . . 38 Total Orders . | . . . . . . . . . . . . Ally Attacks 61 | . . . . . . . . 61 . . . Total Damage 735 | . . . . . . . . 735 . . . Kills 6 | . . . . . . . . 6 . . . Allies Corrupted 1 | . . . . . . . . 1 . . . Allies Melted . | . . . . . . . . . . . . Intel | -11 -10 -9 -9 -8 -7 -7 -7 -7 -7 -7 -5 ------- Run | Yrd Mat Mat Min Mat Fac Was Fac Sto Rec Scr Fac Active Infowar (turns) 7135 | . . . . . 1473 512 1265 512 1227 1496 650 Optics 3048 | . . . . . 1473 512 1063 . . . . Sensors 4072 | . . . . . . . 202 512 1227 1481 650 Structural 15 | . . . . . . . . . . 15 . Jamming 736 | . . . . . . . 70 283 123 . 260 Robot Analysis Total 3 | . 1 1 . . . . . . 1 . . Derelict Logs Recovered 1 | . . . 1 . . . . . . . . Drone Launches . | . . . . . . . . . . . . Drone Recoveries . | . . . . . . . . . . . . Exploration | -11 -10 -9 -9 -8 -7 -7 -7 -7 -7 -7 -5 ------------- Run | Yrd Mat Mat Min Mat Fac Was Fac Sto Rec Scr Fac Turns Passed 11309 | 87 1424 788 365 1173 1769 512 1267 512 1227 1535 650 Spaces Moved 7126 | 55 852 503 303 823 1076 367 689 319 773 980 386 Core 12 | 12 . . . . . . . . . . . Treads 430 | 43 221 . . . 166 . . . . . . Legs . | . . . . . . . . . . . . Wheels 4874 | . 631 503 303 823 910 367 689 319 329 . . Hover 1810 | . . . . . . . . . 444 980 386 Flight . | . . . . . . . . . . . . Fastest Speed 50 | 50 125 95 105 105 100 100 115 130 112 52 108 Average Speed 127 | 136 134 100 105 105 119 103 124 130 152 152 141 Slowest Speed 240 | 160 240 105 105 105 240 115 130 130 172 172 176 Overloaded Moves . | . . . . . . . . . . . . Propulsion Burnouts . | . . . . . . . . . . . . Robots Hopped . | . . . . . . . . . . . . Potential Cave-ins . | . . . . . . . . . . . . Cave-ins Triggered . | . . . . . . . . . . . . Exploration Rate (%) 53 | 3 97 43 69 52 40 96 25 33 98 73 12 Regions Visited 11 Branch Regions 4 Pre-discovered Areas 9 | . . . 1 . . . . . 5 3 . Known Exits Taken 5 | . . 1 . . . . 1 1 1 1 . Unknown Exits Taken 4 | 1 1 . 1 1 . . . . . . . Scrap Searched 2 | . . . . . . . . . . 2 . Spaces Dug 53 | . . . . 3 48 . . . . . 2 Terrain Destroyed 327 | . . 15 . 31 184 . 70 . 5 . 22 Melee 12 | . . . . . 12 . . . . . . Projectile 32 | . . 4 . 14 4 . 2 . 5 . 3 AOE 283 | . . 11 . 17 168 . 68 . . . 19 Terrain Rammed . | . . . . . . . . . . . . Walls Destroyed . | . . . . . . . . . . . . Machines Disabled . | . . . . . . . . . . . . Actions | -11 -10 -9 -9 -8 -7 -7 -7 -7 -7 -7 -5 --------- Run | Yrd Mat Mat Min Mat Fac Was Fac Sto Rec Scr Fac Total 8793 | 64 1005 668 329 1080 1395 505 1037 408 807 1016 479 Wait 902 | . 68 74 16 149 103 103 265 47 3 8 66 Move 7116 | 54 851 502 302 822 1076 366 688 318 772 979 386 Hop . | . . . . . . . . . . . . Pick Up 83 | 3 13 7 . 15 14 7 3 4 1 15 1 Fast Attach 53 | 6 2 3 . 6 10 4 12 2 2 4 2 Attach 24 | . . 2 1 2 7 2 2 . 4 2 2 Detach 9 | . . . . 1 1 1 3 . 3 . . Swap 63 | 1 3 8 . 13 18 4 5 3 3 2 3 Drop 106 | . 5 11 . 26 24 13 11 6 4 6 . Fire 367 | . 61 60 10 46 113 . 47 9 15 . 6 Melee 21 | . . . . . 21 . . . . . . Ram 5 | . 1 1 . . 1 . 1 1 . . . Kick . | . . . . . . . . . . . . Crush 1 | . 1 . . . . . . . . . . Escape Stasis 36 | . . . . . 7 . . 16 . . 13 Rewire 7 | . . . . . . 5 . 2 . . . Trap . | . . . . . . . . . . . . Miscellaneous . | . . . . . . . . . . . . Route ------- -11/Scrapyard -10/Materials (discovered 6 exits: *Mat x3 / [*Min x2] / [*Sub]) -9/Materials (discovered 3 exits: *Mat / *Min x2) -9/Mines -8/Materials -7/Factory (discovered 3 exits: Sto / *Low x2) -7/Waste -7/Factory -7/Storage -7/Recycling (discovered 2 exits: *Fac / *Scr) -7/Scraptown (discovered 2 exits: *Fac x2) -5/Factory (discovered 5 exits: *Fac x4 / *Upp) History --------- Turn | Location | Event 2 | -11/Scrapyard | Met Revision 17 3 | -11/Scrapyard | Discovered new exit (range 16) 88 | -11/Scrapyard | Entered Materials 317 | -10/Materials | Build established: Mutant 571 | -10/Materials | Discovered new exit (range 11) 670 | -10/Materials | Discovered new exit (range 7) 855 | -10/Materials | Discovered new exit (range 6) 861 | -10/Materials | Discovered new exit (range 14) 953 | -10/Materials | Discovered new exit (range 10) 988 | -10/Materials | Derelicts attacked the area 1256 | -10/Materials | Discovered new exit (range 14) 1512 | -10/Materials | Entered another Materials area 1512 | -9/Materials | Evolved 2 slots: Propulsion x1, Utility x1 1582 | -9/Materials | Identified exit to Mines 1732 | -9/Materials | Discovered new exit (range 16) 2300 | -9/Materials | Entered Mines 2314 | -9/Mines | Found a Scrap Suit stashed away for nefarious purposes 2521 | -9/Mines | Learned location of Zion (-6) 2637 | -9/Mines | Discovered new exit (range 15) 2665 | -9/Mines | Entered Materials 2665 | -8/Materials | Evolved 2 slots: Utility x2 3038 | -8/Materials | Discovered new exit (range 10) 3838 | -8/Materials | Entered Factory 3838 | -7/Factory | Evolved 2 slots: Propulsion x1, Utility x1 4812 | -7/Factory | Discovered new exit (range 9) 5111 | -7/Factory | Central database locked down 5188 | -7/Factory | Garrison activated, responded to threat 5410 | -7/Factory | Lost 4 parts (2u2w) 5424 | -7/Factory | Destroyed 8 combat bots 5448 | -7/Factory | Identified exit to Storage 5448 | -7/Factory | Identified exit to Lower Caves 5607 | -7/Factory | Sucked down chute 5607 | -7/Factory | Entered Waste 5607 | -7/Waste | The area was eerily silent 5837 | -7/Waste | Discovered new exit (range 12) 6117 | -7/Waste | A Compactor rumbled back to life 6117 | -7/Waste | Spotted C-40 Crusher 6119 | -7/Waste | Entered Factory 7367 | -7/Factory | Discovered exit to Storage (range 15) 7386 | -7/Factory | Entered Storage 7587 | -7/Storage | Assisted by bots powering up and referring to "LRC-V3" 7588 | -7/Storage | Identified exit to Recycling 7668 | -7/Storage | Used back door to open Recycling access 7861 | -7/Storage | Lost 4 allies 7880 | -7/Storage | Core integrity fell below 50% 7898 | -7/Storage | Entered Recycling 8519 | -7/Recycling | Discovered new exit (range 10) 9093 | -7/Recycling | Scanned before Scraplab entrance 9113 | -7/Recycling | Entered Scraplab 9122 | -7/Recycling | Discovered new exit (range 3) 9123 | -7/Recycling | Identified exit to Scraptown 9125 | -7/Recycling | Entered Scraptown 9125 | -7/Scraptown | System corruption cleaned by C-Scrubber 9415 | -7/Scraptown | Heard Great Nut preacher, LISTEN AND RECITE! 9466 | -7/Scraptown | Build established: Scavenger-Mutant 9508 | -7/Scraptown | Visited UFD Registry 9508 | -7/Scraptown | Registered with UFD as "Hammersink" 9528 | -7/Scraptown | Visited Shadow of the Wyrm 9563 | -7/Scraptown | Visited TADAMA 9590 | -7/Scraptown | Visited Cyclists 9602 | -7/Scraptown | Entered Cyclist Reading Room 9657 | -7/Scraptown | Visited Red Mages 9717 | -7/Scraptown | Visited Symbiants 9774 | -7/Scraptown | Visited Awakened 9829 | -7/Scraptown | Visited Assassins FH 9929 | -7/Scraptown | Received an X-ray algorithm 9965 | -7/Scraptown | Visited Cartography Club 10081 | -7/Scraptown | Learned location of Recycling (-7) 10081 | -7/Scraptown | Learned location of Quarantine (-2) 10081 | -7/Scraptown | Learned 12 Factory zone layouts 10081 | -7/Scraptown | Learned 24 Factory zone layouts 10081 | -7/Scraptown | Learned 12 Research zone layouts 10081 | -7/Scraptown | Learned 4 Access zone layouts 10081 | -7/Scraptown | Learned 4 Storage zone layouts 10081 | -7/Scraptown | Learned 24 Upper Caves zone layouts 10081 | -7/Scraptown | Learned Factory emergency access door positions 10081 | -7/Scraptown | Learned location of 1 exit from Research 10081 | -7/Scraptown | Learned location of 2 exits from Lower Caves 10081 | -7/Scraptown | Learned location of 3 exits from Proximity Caves 10081 | -7/Scraptown | Identified exit to Factory 10086 | -7/Scraptown | Found Unknown Device 10086 | -7/Scraptown | Identified Deep Structural Scanner 10215 | -7/Scraptown | Visited A0-MCA Data Center 10226 | -7/Scraptown | Given an A- rating by A0-MCA 10233 | -7/Scraptown | Found A0-MCA's Component Scanner 10270 | -7/Scraptown | Visited Junk Repository 10299 | -7/Scraptown | Visited Science Guys 10368 | -7/Scraptown | Visited Supply Room 10404 | -7/Scraptown | Visited LU-1G1's Boring Crew 10435 | -7/Scraptown | Visited Chapter 10 10459 | -7/Scraptown | Visited Botcube Research 10467 | -7/Scraptown | Found Botcube 10500 | -7/Scraptown | Visited Junk Repository 10520 | -7/Scraptown | Build established: Mutant 10594 | -7/Scraptown | Met Optimus 10594 | -7/Scraptown | Accepted into 0bPrime 10660 | -7/Scraptown | Entered Factory 10660 | -5/Factory | Evolved 4 slots: Propulsion x2, Utility x2 10661 | -5/Factory | Identified exit to Factory 10661 | -5/Factory | Identified exit to Upper Caves 10947 | -5/Factory | Lost 3 parts (1p2n) 11310 | -5/Factory | Self-destructed Last Messages --------------- 11159_ Acquired Micro-nuke Launcher. 11196_ ALERT: Security rotation in progress. 11201_ Component scanned: Hvy. Gatling Laser. 11230_ Imp. Signal Interpreter broken. 11230_ Overload: Short circuit. 11244_ Acquired Gyrokinetic Inverter. 11249_ ALERT: Potential suspicious activity detected, Programmers report to Factory Zone 5H. 11253_ Connecting with Terminal... >>Recall(Extermination) Establishing remote squad link... Recalled extermination squad DGTH9G0I0J. 11279_ Penetrated by Slug. 11306_ ALERT: All DSF locations entering lockdown mode. 11306_ Terminal disabled. 11306_ Transmission Jammer destroyed. 11309_ Assembly Bed disabled. 11309_ Penetrated by Slug. Map ----- +----------------------------------------------------+ | ??????# """ #?????????????????????????????? | | ####### "Y" #?????????????????????????????? | | + " " #?????????????????????????????? | | ###### !] #?????????????????????????????? | | #????#! """"""""" #?????????????????????????????? | | #????# #?????????????????????????????? | | ##????# """"""""" #?????????????????????????????? | | ??????# #?????????????????????????????? | | ??????# """"""""" #?????????????????????????????? | | ??????# #?????????????????????????????? | | ??????# """"""""" #?????????????????????????????? | | ??????# #######???????????????????????? | | ??????###########+## #???????????????????????? | | ??????????????# #???????????????????????? | | ??????????????# " #???????????????????????? | | ###???????????# #???????????????????????? | | #???????????# #### ##??????????????????????? | | # #???????????# #??## ##############???????????? | | # ####?########+##### # ! #???????????? | | # #?# # # #???????????? | | #### #?# ! """ """ # # #???????????? | | ?### ### """ """ # # """" #???????????? | | ## # """ """ # # """" #??????###### | | # # # """" ######## | | T # """ """ + Y ! """ ## # | | # [ """ """ # #@ """" ## " " + | | ## # """ """ # # """" ## " " # | | ### ## # #T ## " " # | | #?# ## + #" ! ## " " # | | #?# ## # # Y ## " " # | | #?# ## # ###########+### " " # | | ### ########+###### ##????????# #?# " " # | | ## #????????????????????#######?### " " # | | ## ????????????? # " " # | | ## " ????????????? # # | | ## ???????????? ? + ###### | | # ##????????????? ##### ########### | | !#######?????????????????????# # """T""" # | | #???????????????????????????# # """ """ # | | #???????????????????????????# + # | | #???????????????????????????# # / | | "######??????????????????????###+## # # | | #??????????????????????????## ########### | | "" ##?????????????????????????# ! #######T # | | "F T#?????????????????????????# | | "" #?????????????????????????# " | | "" ##?????????????????????????# | | #??????????????????????????#] !########## | | #######??????????????????????????#######"""""#??# | | ???#####?????????????????????????#######""T""#### | +----------------------------------------------------+ Best States ------------- Heat Dissipation 92 Coolant Potential 65 Energy Generation 21 Energy Capacity 325 Matter Stores 300 Matter Capacity 300 Sight Range 20 Robot Scan Range 15 Terrain Scan Density 10 Jamming Range 12 Base Temperature (-) 100 Armor Coverage 450 Evasion (%) 54 Targeting Accuracy 8 Recoil Reduction 4 Item Schematics ----------------- None Robot Schematics ------------------ None Fabricated ------------ Nothing Repaired ---------- Nothing Studied --------- Plasma Cannon | -7/Factory | Hacked Alien Tech Used ----------------- None Achievements -------------- Wiki Contributor Challenges ------------ None Game ------ Seed NodeGuidanceArticulator Manual? 0 Play Time 01:28:23 Cumulative 141.1 hours Start 2026.03.20 @ 12:34:12 End 2026.03.20 @ 19:05:28 Sessions 3 Manual Loads 0 Difficulty Rogue Special Mode None Game No. 116 Rogue 116 Adventurer 0 Explorer 0 Win Type - Total 2 Types 2/0/0/0/0/0/0/0/0/0 Lore% 70 Gallery% 57 Achievement% 51 Wizard Run 0 Options --------- Layout 2 ASCII 0 Keyboard 0 Movement Mouse Keybinds 0 Fullscreen 1 Font 24/Smallcaps Map View 50x44 Zoom Use 0% Tactical HUD 1 Map Filters NONE Filters NONE Steam 1 RUN: 8869ff64-1f0c-490c-847c-ea8e780354fb